Cogmind - Beta 16 @@@ ROGUE MODE // 2025.10.28 @ 20:04:52 Player: Naughtyusername Result: Destroyed by G-34 Mercenary with Small Laser Performance ------------- Evolutions (0) 0 Regions Visited (2) 400 Robots Destroyed (27) 135 Value Destroyed (599) 599 Prototype IDs (2) 40 Alien Tech Used (0) 0 Bonus (0) 0 TOTAL SCORE: 1174 Bonus ------- None Cogmind --------- Core Integrity 0/250 Matter 300/300 Energy 250/250 System Corruption 0% Temperature Cool (6) Movement Treading (160) Location -10/Mines Parts ------- > --- POWER (1) -------- Ion Engine > --- PROPULSION (2) --- Light Treads Light Treads > --- UTILITY (2) ------ Heat Sink Large Storage Unit > --- WEAPON (2) ------- Medium Laser Small Laser > --- INVENTORY (15) --- Ion Engine Heat Sink Heat Sink Small Storage Unit Experimental Sensor Array Seismic Detector Utility Shielding Light Armor Plating Medium Laser Medium Laser Small Laser Small Laser Peak State ------------ > --- POWER ------------ Ion Engine > --- PROPULSION ------- Light Treads Light Treads > --- UTILITY ---------- Heat Sink Large Storage Unit > --- WEAPON ----------- Medium Laser Small Laser > --- INVENTORY -------- Ion Engine Heat Sink Heat Sink Small Storage Unit Experimental Sensor Array Seismic Detector Utility Shielding Light Armor Plating Medium Laser Medium Laser Small Laser Small Laser [Rating: 9] Favorites ----------- Power Ion Engine Engine Ion Engine Propulsion Light Treads Treads Light Treads Utility Heat Sink Device Heat Sink Storage Large Storage Unit Weapon Medium Laser Energy Gun Medium Laser Build | -11 -10 -10 ------- Run | Yrd Mat Min Slots Evolved . | . . . Power . | . . . Propulsion . | . . . Utility . | . . . Weapon . | . . . Parts Attached 16 | 7 7 2 Power 3 | 1 2 . Engine 3 | 1 2 . Core . | . . . Reactor . | . . . Propulsion 4 | 2 1 1 Treads 4 | 2 1 1 Leg . | . . . Wheel . | . . . Hover . | . . . Flight . | . . . Utility 5 | 2 3 . Device 3 | 1 2 . Storage 2 | 1 1 . Processor . | . . . Hackware . | . . . Protection . | . . . Artifact . | . . . Weapon 4 | 2 1 1 Energy Gun 4 | 2 1 1 Energy Cannon . | . . . Ballistic Gun . | . . . Ballistic Cannon . | . . . Launcher . | . . . Special Weapon . | . . . Impact Weapon . | . . . Slashing Weapon . | . . . Piercing Weapon . | . . . Special Melee Weapon . | . . . Unidentified Prototypes . | . . . Parts Lost 5 | . 4 1 Power 2 | . 2 . Propulsion 2 | . 1 1 Utility . | . . . Weapon 1 | . 1 . Highest Loss Streak 2 | . 2 1 To Critical Strikes . | . . . Average Backups 7 | . 5 11 Power . | . . 1 Propulsion . | . . . Utility 4 | . 3 6 Weapon 1 | . . 3 Tool/Special . | . . . Unused Backups 8 | . . 8 Power 1 | . . 1 Propulsion . | . . . Utility 4 | . . 4 Weapon 3 | . . 3 Tool/Special . | . . . Average Slot Usage (%) 95 | . 93 99 Engine 12 | . 12 14 Treads 27 | . 27 27 Device 12 | . 11 14 Storage 14 | . 14 14 Energy Gun 26 | . 25 28 Peak Build Rating 9 | 7 8 9 Average Rating 7 | 5 6 8 On Entrance 5 | . 7 8 Avg Prop Armor Cover (%) . | . . . Naked Turns . | . . . Heaviest Build 30 | 14 30 30 Greatest Support 40 | 40 40 40 Greatest Overweight (x) . | . . . Average Overweight (x) . | . . . Largest Inventory Capacity 15 | 8 15 15 Average Capacity 11 | 7 10 15 Most Carried 12 | 1 11 12 Average Carried 7 | . 5 11 Final Capacity 15 | 8 15 15 Final Carried 12 | 1 11 12 Class Distribution -------------------- 100% | Mutant Dominant Class ---------------- Mutant | -10/Materials Mutant | -10/Mines Resources | -11 -10 -10 ----------- Run | Yrd Mat Min Matter Collected 360 | 270 70 20 Remotely . | . . . Salvage Created 890 | 121 601 168 Parts 42 | 10 22 10 Haulers Intercepted 2 | . 2 . Recyclers Shooed 2 | 1 1 . Parts Field Recycled . | . . . Retrieved Matter . | . . . Parts Self-Destructed . | . . . Prevented . | . . . Parts Restored . | . . . Kills | -11 -10 -10 ------- Run | Yrd Mat Min Combat Hostiles Destroyed 19 | . 13 6 Guns 17 | . 11 6 Classes Destroyed 7 | 2 4 1 Worker 1 | . . 1 Tunneler 3 | 3 . . Hauler 2 | . 2 . Recycler 1 | 1 . . Watcher 1 | . 1 . Swarmer 6 | . 3 3 Grunt 13 | . 10 3 Best Kill Streak 4 | 4 2 2 Combat Bots Only 2 | . 2 2 Max Kills in Single Turn 1 | 1 1 1 Gunslinging . | . . . Exploded . | . . . Melee . | . . . Uniques/NPCs Destroyed . | . . . Combat | -11 -10 -10 -------- Run | Yrd Mat Min Hostile Shots Fired 124 | . 69 55 Missed 29 | . 10 19 Hits 95 | . 59 36 Projectile 95 | . 59 36 Damage Taken 1145 | . 728 417 Core 251 | . 172 79 Absorbed by Shields . | . . . Core Remaining (%) 100 | 100 . . Volleys Fired 109 | 7 69 33 Largest 2 | 2 2 2 Hottest 100 | 90 100 100 Shots Fired 202 | 14 122 66 Gun 202 | 14 122 66 Cannon . | . . . Launcher . | . . . Special . | . . . Kinetic . | . . . Thermal 202 | 14 122 66 Explosive . | . . . Electromagnetic . | . . . Robot Hit Streak 15 | 6 15 5 Robot Miss Streak 4 | 1 3 4 Penetration Max . | . . . Secondary Targets 1 | . 1 . Max Gunslinging Chain 1 | . 1 . Shots Hit Robots 130 | 10 87 33 Core Hits 43 | 5 26 12 Critical Kills . | . . . Critical Parts Destroyed . | . . . Critical Strikes 13 | . 11 2 Burn 13 | . 11 2 Melee Attacks . | . . . Impact . | . . . Slashing . | . . . Piercing . | . . . Sneak Attacks . | . . . Combat Hostiles . | . . . Follow-up Attacks . | . . . Damage Inflicted 1607 | 121 1084 402 Guns 1599 | 121 1077 401 Cannons . | . . . Explosions . | . . . Melee . | . . . Ramming 8 | . 7 1 Kinetic . | . . . Thermal 1599 | 121 1077 401 Explosive . | . . . Electromagnetic . | . . . Impact . | . . . Slashing . | . . . Piercing . | . . . Highest Corruption . | . . . Average Corruption . | . . . Corruption Purged . | . . . Corruption Blocked . | . . . Overload Shots . | . . . Overflow Damage . | . . . Projectiles . | . . . Explosions . | . . . Melee . | . . . Knockbacks . | . . . Impact . | . . . Kinetic . | . . . Secondary . | . . . Self-Inflicted Damage . | . . . Shots . | . . . Rammed 3 | . 3 . Targets Rammed 4 | . 3 1 Kicked . | . . . Crushed 1 | . . 1 Highest Temperature 369 | 180 369 153 Average Temperature 87 | 82 95 61 Received Heat Transfer 531 | . 372 159 Effects 3 | . 3 . Energy Bleed 1 | . 1 . Interference 1 | . 1 . Damage (minor) 1 | . 1 . Siege Activations . | . . . Martial Activations . | . . . Shielding Activations . | . . . Robots Disrupted . | . . . Combat Hostiles . | . . . Robots Corrupted . | . . . Combat Hostiles . | . . . Parts Fried . | . . . Impact Corruptions . | . . . Robots Melted 4 | . 4 . Combat Hostiles 2 | . 2 . Parts Melted 16 | 1 13 2 Heat Transferred 5364 | 310 3830 1224 Parts Sabotaged . | . . . Parts Stolen . | . . . Parts Stripped . | . . . Power Chain Reactions . | . . . Alert | -11 -10 -10 ------- Run | Yrd Mat Min Maximum Alert Level . | . . . Low Security (%) 100 | 100 100 100 Level 1 . | . . . Level 2 . | . . . Level 3 . | . . . Level 4 . | . . . Level 5 . | . . . High Security . | . . . Max Security . | . . . Peak Influence 195 | 15 195 65 Initial 12 | . 3 12 Average 48 | 2 73 16 Influence Increases 785 | 20 545 220 Destroy 0b10 Robot/C 380 | . 260 120 Destroy 0b10 Robot/NC 40 | 20 15 5 Destroy Leader 86 | . 66 20 Successful Hack 39 | . 39 . Select Force Hacks 60 | . 60 . Disable Machine 15 | . . 15 Lose Combat Pursuer 165 | . 105 60 Influence Decreases 785 | 15 517 253 Entered New Map 23 | . 2 21 Time Decay 712 | 15 475 222 Lost Part 50 | . 40 10 Squads Dispatched 4 | . 4 . Investigation 3 | . 3 . Extermination . | . . . Reinforcement 1 | . 1 . Assault . | . . . Garrison . | . . . Intercept . | . . . Searches Triggered . | . . . Construction Impeded . | . . . Haulers Reinforced . | . . . Active Scanning Responses . | . . . Cargo Convoy Interrupts . | . . . Stealth | -11 -10 -10 --------- Run | Yrd Mat Min Distress Signals 3 | . 3 . Communications Jammed . | . . . Distress Signals . | . . . Times Spotted 39 | . 28 11 Peak Tracking Total 5 | . 5 3 Tactical Retreats 8 | . 4 4 Traps | -11 -10 -10 ------- Run | Yrd Mat Min Traps Triggered 1 | . 1 . Indirectly . | . . . Trap Hack Attempts . | . . . Triggered . | . . . Disarmed . | . . . Reprogrammed . | . . . Reused . | . . . Traps Extracted . | . . . Installed . | . . . Triggered . | . . . Machines | -11 -10 -10 ---------- Run | Yrd Mat Min Machines Disabled 1 | . . 1 Max in Single Turn 1 | . . 1 Machines Repaired . | . . . Machines Dismantled . | . . . Machines Sabotaged . | . . . Overloaded Fab Kills . | . . . Hacking | -11 -10 -10 --------- Run | Yrd Mat Min Machines Accessed 9 | . 9 . Terminals 7 | . 7 . Fabricators . | . . . Repair Stations . | . . . Recycling Units 2 | . 2 . Scanalyzers . | . . . Garrison Access . | . . . Total Hacks 26 | . 26 . Successful 15 | . 15 . Failed 11 | . 11 . Catastrophic . | . . . Database Lockouts . | . . . Manual 23 | . 23 . Terminals 22 | . 22 . Fabricators . | . . . Repair Stations . | . . . Recycling Units 4 | . 4 . Scanalyzers . | . . . Garrison Access . | . . . Terminal Hacks 5 | . 5 . Robot Analysis 3 | . 3 . Prototype ID Bank 1 | . 1 . Terminal Index 1 | . 1 . Fabricator Hacks . | . . . Repair Station Hacks . | . . . Recycling Unit Hacks 1 | . 1 . Retrieve Components 1 | . 1 . Scanalyzer . | . . . Garrison Access Hacks . | . . . Unauthorized Hacks 9 | . 9 . Terminals 7 | . 7 . Botnet 2 | . 2 . Skim 5 | . 5 . Fabricators . | . . . Repair Stations . | . . . Recycling Units 2 | . 2 . Tunnel 2 | . 2 . Scanalyzers . | . . . Garrison Access . | . . . Data Cores Recovered . | . . . Used . | . . . Hacking Detections 7 | . 7 . Full Trace Events . | . . . Feedback Events . | . . . Feedback Blocked . | . . . Robot Schematics Acquired . | . . . Robots Built . | . . . Authchips . | . . . Time . | . . . Total Robot Build Rating . | . . . Part Schematics Acquired . | . . . Parts Built . | . . . Authchips . | . . . Time . | . . . Total Part Build Rating . | . . . Part Studies Acquired . | . . . Parts Repaired . | . . . Time . | . . . Parts Recycled . | . . . Recycled Matter . | . . . Retrieved Matter . | . . . Retrieved Components 9 | . 9 . Parts Scanalyzed . | . . . Part Schematics Acquired . | . . . Parts Damaged . | . . . Bothacking | -11 -10 -10 ------------ Run | Yrd Mat Min Used RIF Installer . | . . . Robots Hacked . | . . . Non-combat . | . . . Combat . | . . . Robot Hacks Applied . | . . . Relay Couplers Released . | . . . Fabnet Peak Effective % . | . . . Robots Rewired . | . . . Allies Hacked . | . . . Hacks Repelled . | . . . Allies | -11 -10 -10 -------- Run | Yrd Mat Min Total Allies . | . . . Largest Group . | . . . Highest-Rated Group . | . . . Highest-Rated Ally . | . . . Total Orders . | . . . Ally Attacks . | . . . Total Damage . | . . . Kills . | . . . Allies Corrupted . | . . . Allies Melted . | . . . Intel | -11 -10 -10 ------- Run | Yrd Mat Min Active Infowar (turns) 93 | 40 53 . Seismic 93 | 40 53 . Robot Analysis Total 3 | . 3 . Derelict Logs Recovered 1 | . . 1 Drone Launches . | . . . Drone Recoveries . | . . . Exploration | -11 -10 -10 ------------- Run | Yrd Mat Min Turns Passed 2184 | 117 1245 822 Spaces Moved 978 | 57 617 304 Core 5 | 5 . . Treads 973 | 52 617 304 Legs . | . . . Wheels . | . . . Hover . | . . . Flight . | . . . Fastest Speed 50 | 50 160 160 Average Speed 159 | 150 160 160 Slowest Speed 160 | 160 160 160 Overloaded Moves . | . . . Propulsion Burnouts . | . . . Robots Hopped . | . . . Potential Cave-ins . | . . . Cave-ins Triggered . | . . . Exploration Rate (%) 58 | 5 97 73 Regions Visited 2 Branch Regions 1 Pre-discovered Areas 3 | . 2 1 Known Exits Taken 1 | . 1 . Unknown Exits Taken 1 | 1 . . Scrap Searched 2 | . . 2 Spaces Dug . | . . . Terrain Destroyed . | . . . Melee . | . . . Projectile . | . . . AOE . | . . . Terrain Rammed . | . . . Walls Destroyed . | . . . Machines Disabled . | . . . Actions | -11 -10 -10 --------- Run | Yrd Mat Min Total 1393 | 71 749 573 Wait 276 | . 44 232 Move 976 | 56 616 304 Hop . | . . . Pick Up 11 | 1 9 1 Fast Attach 10 | 7 3 . Attach 3 | . 2 1 Detach 1 | . 1 . Swap 3 | . 2 1 Drop . | . . . Fire 109 | 7 69 33 Melee . | . . . Ram . | . . . Kick . | . . . Crush 4 | . 3 1 Escape Stasis . | . . . Rewire . | . . . Trap . | . . . Miscellaneous . | . . . Route ------- -11/Scrapyard -10/Materials (discovered 5 exits: *Mat x3 / *Min / Sub) -10/Mines (discovered 1 exit: Mat) History --------- Turn | Location | Event 4 | -11/Scrapyard | Discovered new exit (range 14) 118 | -11/Scrapyard | Entered Materials 306 | -10/Materials | Build established: Mutant 459 | -10/Materials | Core integrity fell below 50% 528 | -10/Materials | Discovered new exit (range 13) 571 | -10/Materials | Discovered new exit (range 14) 741 | -10/Materials | Discovered new exit (range 16) 1008 | -10/Materials | Identified exit to Materials 1049 | -10/Materials | Learned 2 Storage zone layouts 1081 | -10/Materials | Identified exit to Subcaves 1104 | -10/Materials | Learned Storage trap positions 1115 | -10/Materials | Learned Storage stockpile data 1134 | -10/Materials | Learned 2 Storage zone layouts 1165 | -10/Materials | Identified exit to Mines 1363 | -10/Materials | Entered Mines 1395 | -10/Mines | Core integrity fell below 20% 1470 | -10/Mines | Learned location of Storage (-9) 1510 | -10/Mines | Found a damaged Exp. Sensor Array with a note attached 1513 | -10/Mines | Found Prototype Device 1951 | -10/Mines | Excavation squad dispatched 1951 | -10/Mines | A large section of the Mines collapsed 2185 | -10/Mines | Destroyed by G-34 Mercenary with Small Laser Last Messages --------------- 01571_ U-05 Engineer lays Concrete. 01583_ Crushed K-01 Serf. 01583_ K-01 Serf destroyed. 01590_ R-06 Scavenger collects Sml. Matter Pod. 01613_ K-01 Serf collects debris. 01627_ S-10 Pest suffers critical hit (Burn). 01627_ S-10 Pest destroyed. 01721_ Searching scrap... 01721_ Found Flight Unit. 01721_ Found 38 Matter. 01721_ K-01 Serf collects debris. 01786_ S-10 Pest destroyed. 01833_ Searching scrap... 01833_ Found Flight Unit. 01833_ Found 41 Matter. 01861_ K-01 Serf cleans the Core Extractor. 01951_ ALERT: Suspicious cave-in, suspected derelict activity in mines. Dispatching escorted excavation squad. 02169_ T-07 Excavator is excavating. Map ----- +----------------------------------------------------+ | | | | | | | | | | | | | | | | | | | ?????????????????????????????????????? | | ?????????????????????????????????????? | | ?????????????????????????????????????? | | ?????????????????????????????????????? | | ?????????????????????????????????????? | | ?????????????????????????????????????? | | ?????????????????????????????????????? | | ??????????????????????? ????????????? | | ?????????????????????? ?????????????? | | ???##???????????????? #?????????????? | | ???# #????????????? #?????????????? | | ???# ####???????? #?????????????? | | ????? ##?????# ???????????????? | | ??????? # #????# #????????????????? | | ????????## ###??# #?????????????????? | | ?????????##t ### k #?????????????????? | | ?????????## @ #??????????????????? | | ??????????## g ##??????????????????? | | ???????????## ##t#???????????????????? | | ????????????# ## #???????????????????? | | ????????????# ## #?????????###???????? | | ??????####### ## #????????# ###?????? | | ??????# ## #???##### ##????? | | ??????# ##### t ##### ##???? | | ??????# #???### ##??? | | ??????# #?????# #??? | | ??????# #?????####### ### #??? | | ??????# #???????????## ##?????????? | | ?###### #????????????## ##??????????? | | ?# #?????????????# #???????????? | | ?# ######?????????????# #???????????? | | ?# #??????????????????# #???????????? | | ?# #############????### #???????????? | | ?# #???## ##??????????? | | ?# """ % #???# #??????????? | | ?# """ " #???# #??????????? | | ?# """ """ #???## ######?????? | | ?# #???## ## ##????? | | ?# """ """ #???# #????? | | ?# """ """ #???# """ ###### | | ?# """ """ #???# """ % | +----------------------------------------------------+ Best States ------------- Heat Dissipation 35 Energy Generation 10 Energy Capacity 250 Matter Stores 300 Matter Capacity 300 Sight Range 16 Terrain Scan Density 10 Evasion (%) 40 Recoil Reduction 2 Item Schematics ----------------- None Robot Schematics ------------------ None Fabricated ------------ Nothing Repaired ---------- Nothing Studied --------- None Alien Tech Used ----------------- None Achievements -------------- None Challenges ------------ None Game ------ Seed ProjectileHackingNukerbomber Manual? 0 Play Time 00:08:59 Cumulative 455.7 hours Start 2025.10.28 @ 19:52:45 End 2025.10.28 @ 20:04:52 Sessions 2 Manual Loads 0 Difficulty Rogue Special Mode None Game No. 242 Rogue 242 Adventurer 0 Explorer 0 Win Type - Total 20 Types 12/1/5/1/0/0/0/1/0/0 Lore% 92 Gallery% 85 Achievement% 77 Wizard Run 0 Options --------- Layout 2 ASCII 0 Keyboard 1 Movement Vi Keybinds 0 Fullscreen 1 Font 28/Terminus Map View 50x52 Zoom Use 0% Tactical HUD 1 Map Filters NONE Filters NONE Steam 1 RUN: 383ddcae-cdee-419e-969d-ac573878ddf3